[Event "NOR-ch Youth 2019"]
[Site "Skien"]
[Date "2019.11.10"]
[Round "7.3"]
[White "Holm, Karl Oskar Magnus"]
[Black "Vestby-Ellingsen, Mads"]
[Result "0-1"]
[ECO "E81"]
[WhiteElo "1751"]
[BlackElo "2351"]
[Annotator "NA"]
[PlyCount "92"]
[EventDate "2019.11.08"]
[EventType "swiss"]
[EventCountry "NOR"]
[SourceTitle "playchess.com"]
[Source "ChessBase"]
[SourceQuality "1"]
[TimeControl "5400+30"]

1. d4 {[%emt 0:05:20]} Nf6 {[%emt 0:00:18]} 2. c4 {[%emt 0:00:05]} g6 {[%emt 0:00:16]} 3. Nc3 {[%emt 0:00:10]} Bg7 {[%emt 0:01:46]} 4. e4 {[%emt 0:00:12]} d6 {[%emt 0:00:10]} 5. f3 {[%emt 0:00:46]} O-O {[%emt 0:00:29]} 6. Nge2 {[%emt 0:00:16]} c5 {[%emt 0:00:51]} 7. Be3 {[%emt 0:04:19]} Nc6 {[%emt 0:01:41]} 8. Qd2 {[%emt 0:01:44]} (8. d5 $5 {[%cal Rd5c6]} Ne5 9. Ng3 $11) 8... Qa5 {[%emt 0:10:58]} 9. d5 {[%emt 0:26:18]} Ne5 {[%emt 0:00:35]} 10. Ng3 {[%emt 0:00:14]} e6 {[%emt 0:02:51]} 11. Be2 {[%emt 0:01:43]} exd5 {[%emt 0:01:49]} 12. cxd5 {[%emt 0:00:15]} a6 {[%emt 0:01:39]} 13. O-O $14 {[%emt 0:01:52]} b5 {[%emt 0:00:58]} 14. h3 {[%emt 0:07:28]} Re8 {[%emt 0:04:55]} 15. b3 {[%emt 0:09:13]} h5 {[%emt 0:03:43]} 16. a4 {[%emt 0:04:04]} b4 {[%emt 0:00:35]} 17. Nd1 {[%emt 0:00:56]} h4 {[%emt 0:12:01]} 18. Nh1 {[%emt 0:00:18]} Nh7 {[%emt 0:00:17]} 19. Nb2 {[%emt 0:01:02]} f5 {[%emt 0:01:06]} 20. Rad1 {[%emt 0:06:05]} fxe4 {[%emt 0:02:25]} 21. fxe4 {[%emt 0:00:14]} Qd8 {[%emt 0:00:32]} 22. Nd3 {[%emt 0:03:29]} Nxd3 {[%emt 0:22:26]} 23. Bxd3 {[%emt 0:00:29]} Be5 {[%emt 0:00:09]} 24. Be2 {[%emt 0:14:44]} Qe7 {[%emt 0:03:56]} 25. Bd3 {[%emt 0:01:36]} g5 {[%emt 0:06:14]} 26. Nf2 {[%emt 0:00:35]} Qg7 {[%emt 0:01:05]} 27. Qe2 {[%emt 0:00:17]} Nf6 {[%emt 0:00:57]} 28. Ng4 {[%emt 0:02:16]} Nxg4 {[%emt 0:00:13]} 29. hxg4 {[%emt 0:00:07]} Ra7 {[%emt 0:01:26]} 30. Qf3 {[%emt 0:05:41]} Qg6 {[%emt 0:00:47]} 31. Qh3 {[%emt 0:00:27]} Rae7 {[%emt 0:00:46]} 32. Rf3 {[%emt 0:00:30]} Rg7 {[%emt 0:01:43]} 33. Rdf1 {[%emt 0:00:20]} Rd8 {[%emt 0:00:56]} 34. Rd1 {[%emt 0:00:11]} Qe8 {[%emt 0:00:26]} 35. Rdf1 {[%emt 0:00:14]} Qe7 {[%emt 0:00:57]} 36. Kh1 {[%emt 0:01:16]} Qe8 {[%emt 0:01:28]} 37. Kg1 {[%emt 0:00:04]} Qg6 {[%emt 0:00:08]} 38. Kh1 {[%emt 0:00:32]} Re7 {[%emt 0:01:42]} 39. Kg1 {[%emt 0:00:18]} Ree8 {[%emt 0:00:19]} 40. Kh1 {[%emt 0:00:16]} a5 {[%emt 0:01:24]} 41. Kg1 {[%emt 0:00:17]} Rf8 {[%emt 0:00:59]} 42. Kh1 {[%emt 0:00:36]} Qg7 {[%emt 0:00:08]} 43. Kg1 {[%emt 0:00:29]} Bg3 {[%emt 0:01:01]} 44. Rxf8+ {[%emt 0:02:52]} Rxf8 {[%emt 0:00:07]} 45. Bf2 {[%emt 0:01:44]} Rxf2 {[%emt 0:00:14]} 46. Rxf2 {[%emt 0:00:22]} Qd4 {[%emt 0:00:09]} 0-1

[Event "NOR-ch Youth 2019"]
[Site "Skien"]
[Date "2019.11.10"]
[Round "7.4"]
[White "Nordquelle, Daniel"]
[Black "Fossan, Aleksander"]
[Result "1-0"]
[ECO "B27"]
[WhiteElo "2190"]
[BlackElo "2179"]
[Annotator "NA"]
[PlyCount "103"]
[EventDate "2019.11.08"]
[EventType "swiss"]
[EventCountry "NOR"]
[SourceTitle "playchess.com"]
[Source "ChessBase"]
[SourceQuality "1"]
[TimeControl "5400+30"]

1. e4 {[%emt 0:00:00]} c5 {[%emt 0:00:00]} 2. Nf3 {[%emt 0:00:00]} g6 {[%emt 0:00:19]} 3. c3 {[%emt 0:00:00]} Bg7 {[%emt 0:00:31]} 4. d4 {[%emt 0:00:05]} cxd4 {[%emt 0:00:04]} 5. cxd4 {[%emt 0:00:04]} d5 {[%emt 0:00:05]} 6. e5 {[%emt 0:00:04]} Bg4 {[%emt 0:00:04]} 7. Bb5+ {[%emt 0:00:26]} Nd7 {[%emt 0:00:23]} 8. O-O {[%emt 0:00:49]} e6 {[%emt 0:00:38]} 9. b3 {[%emt 0:18:40]} Ne7 {[%emt 0:00:55]} 10. Ba3 {[%emt 0:00:08]} O-O {[%emt 0:00:53]} 11. Nbd2 {[%emt 0:00:23]} a6 {[%emt 0:01:45]} 12. Be2 $11 {[%emt 0:12:21]} Re8 {[%emt 0:07:32]} 13. h3 {[%emt 0:00:09]} Bxf3 {[%emt 0:00:07]} 14. Nxf3 {[%emt 0:00:06]} Nc6 {[%emt 0:05:44]} 15. h4 {[%emt 0:08:32]} f6 {[%emt 0:04:58]} 16. exf6 {[%emt 0:03:08]} Nxf6 {[%emt 0:09:02]} 17. Re1 {[%emt 0:17:21]} Ne4 {[%emt 0:07:03]} 18. Bb2 {[%emt 0:01:51]} Qb6 {[%emt 0:04:11]} 19. Bd3 {[%emt 0:07:51]} Nd6 {[%emt 0:29:29]} 20. h5 {[%emt 0:03:03]} Nf5 {[%emt 0:00:39]} 21. hxg6 {[%emt 0:00:49]} hxg6 {[%emt 0:00:02]} 22. Bxf5 {[%emt 0:00:49]} exf5 {[%emt 0:00:34]} 23. Ne5 {[%emt 0:00:43]} Nxe5 {[%emt 0:11:22]} 24. dxe5 {[%emt 0:00:08]} Rad8 {[%emt 0:00:39]} 25. Bd4 {[%emt 0:00:43]} Qe6 {[%emt 0:00:50]} 26. Qd2 {[%emt 0:02:26]} Rc8 {[%emt 0:01:34]} 27. f4 {[%emt 0:01:12]} Bf8 {[%emt 0:00:53]} 28. Rac1 {[%emt 0:04:22]} Ba3 {[%emt 0:01:04]} 29. Rxc8 {[%emt 0:01:34]} Rxc8 {[%emt 0:00:02]} 30. Qf2 {[%emt 0:05:24]} Bb4 {[%emt 0:01:58]} 31. Rd1 {[%emt 0:00:33]} Kg7 {[%emt 0:01:12]} 32. Qe3 {[%emt 0:03:43]} Kf7 {[%emt 0:04:12]} 33. Kf1 {[%emt 0:01:30]} Qc6 {[%emt 0:01:14]} 34. Qh3 {[%emt 0:03:12]} Kg8 {[%emt 0:03:41]} 35. Qg3 {[%emt 0:01:37]} Rc7 {[%emt 0:01:27]} 36. Qf3 {[%emt 0:01:13]} Rh7 {[%emt 0:01:27]} 37. Bg1 {[%emt 0:01:36]} Rd7 {[%emt 0:00:44]} 38. Bd4 {[%emt 0:01:13]} Kf7 {[%emt 0:00:54]} 39. Qd3 {[%emt 0:00:23]} Ke6 {[%emt 0:00:24]} 40. Be3 {[%emt 0:00:44]} Ba3 {[%emt 0:00:40]} 41. Rd2 {[%emt 0:00:48]} Qc1+ {[%emt 0:00:25]} 42. Ke2 {[%emt 0:00:34]} Bb4 {[%emt 0:00:29]} 43. Rc2 {[%emt 0:00:27]} Qe1+ {[%emt 0:00:12]} 44. Kf3 {[%emt 0:00:03]} Qh1 {[%emt 0:01:03]} 45. Rc1 {[%emt 0:00:30]} Qh5+ {[%emt 0:00:12]} 46. Kf2 {[%emt 0:00:14]} Qh4+ {[%emt 0:00:39]} 47. Kg1 {[%emt 0:00:32]} Rh7 {[%emt 0:00:24]} 48. Qd4 {[%emt 0:00:20]} Qh1+ {[%emt 0:00:45]} 49. Kf2 {[%emt 0:00:03]} Qh4+ {[%emt 0:00:02]} 50. Kf1 {[%emt 0:00:17]} Qd8 {[%emt 0:00:32]} 51. Qxb4 {[%emt 0:00:24]} Rh1+ {[%emt 0:01:01]} 52. Bg1 {[%emt 0:00:14]} 1-0

[Event "NOR-ch Youth 2019"]
[Site "Skien"]
[Date "2019.11.10"]
[Round "7.5"]
[White "Holand, Per Fredrik"]
[Black "Leonhardsen, Vebjorn Maanum"]
[Result "1/2-1/2"]
[ECO "A29"]
[WhiteElo "1927"]
[BlackElo "1836"]
[Annotator "NA RC"]
[PlyCount "97"]
[EventDate "2019.11.08"]
[EventType "swiss"]
[EventCountry "NOR"]
[SourceTitle "playchess.com"]
[Source "ChessBase"]
[SourceQuality "1"]
[TimeControl "5400+30"]

1. c4 {[%emt 0:00:00]} e5 {[%emt 0:00:00]} 2. Nc3 {[%emt 0:00:22]} Nf6 {[%emt 0:00:18]} 3. Nf3 {[%emt 0:01:11]} d6 {[%emt 0:02:27]} 4. g3 {[%emt 0:02:54]} Be7 {[%emt 0:02:33]} 5. Bg2 {[%emt 0:00:06]} O-O {[%emt 0:01:41]} 6. O-O {[%emt 0:00:58]} h6 {[%emt 0:05:28]} 7. d3 {[%emt 0:05:43]} Nc6 {[%emt 0:01:56]} 8. Bd2 {[%emt 0:00:46]} Bg4 {[%emt 0:01:27]} 9. Rc1 {[%emt 0:01:45]} Qd7 {[%emt 0:01:53]} 10. Re1 {[%emt 0:05:36]} Rae8 {[%emt 0:07:59]} 11. Be3 {[%emt 0:04:07]} Nh5 {[%emt 0:07:31]} 12. d4 {[%emt 0:14:05]} e4 {[%emt 0:01:09]} 13. Nxe4 {[%emt 0:05:24]} f5 {[%emt 0:00:28]} 14. Nc3 {[%emt 0:00:11]} f4 {[%emt 0:01:39]} 15. Bd2 {[%emt 0:02:36]} g5 {[%emt 0:03:37]} 16. Nd5 {[%emt 0:12:28]} Bh3 {[%emt 0:06:40]} 17. Qc2 {[%emt 0:06:33]} Bf5 {[%emt 0:00:54]} 18. Qd1 {[%emt 0:00:52]} Bh3 {[%emt 0:05:23]} 19. Bc3 {[%emt 0:10:00]} Bd8 {[%emt 0:02:14]} 20. Qc2 {[%emt 0:03:04]} Bf5 {[%emt 0:00:46]} 21. Qd1 {[%emt 0:02:14]} Be4 {[%emt 0:01:11]} 22. Ne5 {[%emt 0:14:47]} dxe5 {[%emt 0:03:48]} 23. Bxe4 {[%emt 0:00:10]} Qf7 {[%emt 0:06:46]} 24. dxe5 {[%emt 0:03:53]} Nxe5 {[%emt 0:07:38]} 25. Bxe5 {[%emt 0:00:36]} Rxe5 {[%emt 0:00:05]} 26. Bf3 {[%emt 0:00:38]} g4 {[%emt 0:03:38]} 27. Bxg4 {[%emt 0:01:51]} Rg5 {[%emt 0:00:18]} 28. Bxh5 {[%emt 0:00:33]} Qxh5 {[%emt 0:00:58]} 29. Qd4 {[%emt 0:00:28]} Rg4 {[%emt 0:02:30]} 30. Qd3 {[%emt 0:00:31]} Bg5 {[%emt 0:05:14]} 31. Rcd1 {[%emt 0:00:27]} c6 {[%emt 0:02:02]} 32. Nc3 {[%emt 0:00:18]} Qf7 {[%emt 0:02:24]} 33. Rf1 {[%emt 0:00:47]} h5 {[%emt 0:00:12]} 34. Ne4 {[%emt 0:00:12]} Be7 {[%emt 0:00:34]} 35. Nd6 {[%emt 0:00:46]} Bxd6 {[%emt 0:01:56]} 36. Qxd6 {[%emt 0:00:05]} Rg6 {[%emt 0:02:45]} 37. Qd3 {[%emt 0:00:58]} h4 {[%emt 0:00:24]} 38. Kg2 {[%emt 0:00:17]} Qe6 {[%emt 0:01:25]} 39. b3 {[%emt 0:00:37]} Rh6 {[%emt 0:02:13]} 40. Rh1 {[%emt 0:00:22]} Qg4 {[%emt 0:01:45]} 41. Qf3 {[%emt 0:00:29]} Qg5 {[%emt 0:02:46]} 42. Qd3 {[%emt 0:00:42]} Qg4 {[%emt 0:01:00]} 43. h3 {[%emt 0:00:31]} Qe6 {[%emt 0:01:46]} 44. g4 {[%emt 0:00:17]} Rhf6 {[%emt 0:00:09]} 45. f3 {[%emt 0:00:23]} Qe8 {[%emt 0:00:45]} 46. Rhe1 {[%emt 0:00:22]} Re6 {[%emt 0:00:05]} 47. Rd2 {[%emt 0:00:28]} Re3 {[%emt 0:00:14]} 48. Qd7 {[%emt 0:00:44]} Qe5 {[%emt 0:00:21]} 49. Qd4 {[%emt 0:00:46]} 1/2-1/2

[Event "NOR-ch Youth 2019"]
[Site "Skien"]
[Date "2019.11.10"]
[Round "7.6"]
[White "Opseth, Oliver"]
[Black "Carlin, Tormod"]
[Result "1-0"]
[ECO "B27"]
[WhiteElo "1795"]
[BlackElo "1566"]
[Annotator "NA"]
[PlyCount "111"]
[EventDate "2019.11.08"]
[EventType "swiss"]
[EventCountry "NOR"]
[SourceTitle "playchess.com"]
[Source "ChessBase"]
[SourceQuality "1"]
[TimeControl "5400+30"]

1. e4 {[%emt 0:00:00]} c5 {[%emt 0:00:00]} 2. Nf3 {[%emt 0:00:00]} g6 {[%emt 0:01:09]} 3. d4 {[%emt 0:02:16]} cxd4 {[%emt 0:00:08]} 4. Qxd4 {[%emt 0:00:29]} f6 {[%emt 0:03:19]} 5. Bc4 {[%emt 0:01:26]} Nc6 {[%emt 0:00:11]} 6. Qd3 {[%emt 0:00:55]} Bg7 {[%emt 0:00:54]} 7. O-O {[%emt 0:01:51]} Ne5 {[%emt 0:00:25]} 8. Nxe5 {[%emt 0:00:53]} fxe5 {[%emt 0:00:06]} 9. Nc3 {[%emt 0:02:07]} Nf6 {[%emt 0:00:08]} 10. Bg5 {[%emt 0:04:47]} d6 {[%emt 0:12:13]} 11. Rad1 {[%emt 0:01:38]} Bd7 {[%emt 0:04:38]} 12. Bxf6 {[%emt 0:02:41]} Bxf6 {[%emt 0:00:41]} 13. Qd5 {[%emt 0:00:21]} Rf8 {[%emt 0:02:17]} 14. Qxb7 {[%emt 0:03:18]} Rc8 {[%emt 0:10:39]} 15. Bb5 {[%emt 0:03:03]} Rc7 {[%emt 0:02:10]} 16. Qa6 {[%emt 0:03:06]} Kf7 {[%emt 0:02:58]} 17. Nd5 {[%emt 0:01:15]} Bxb5 {[%emt 0:02:19]} 18. Qxb5 {[%emt 0:00:23]} Rxc2 {[%emt 0:00:48]} 19. Qb3 {[%emt 0:00:29]} Rc5 {[%emt 0:04:05]} 20. Nc7+ {[%emt 0:00:58]} d5 {[%emt 0:06:59]} 21. Nxd5 {[%emt 0:01:20]} e6 {[%emt 0:02:55]} 22. Qb7+ {[%emt 0:04:53]} Kg8 {[%emt 0:03:53]} 23. Qxa7 {[%emt 0:00:30]} Qa5 {[%emt 0:03:51]} 24. Nxf6+ {[%emt 0:01:16]} Rxf6 {[%emt 0:00:19]} 25. Qe7 {[%emt 0:00:42]} Rf7 {[%emt 0:01:16]} 26. Qxe6 {[%emt 0:02:24]} Qc7 {[%emt 0:02:02]} 27. b4 {[%emt 0:01:12]} Rc6 {[%emt 0:00:40]} 28. Qd5 {[%emt 0:00:30]} Kg7 {[%emt 0:00:36]} 29. a4 {[%emt 0:01:14]} Rc2 {[%emt 0:00:47]} 30. b5 {[%emt 0:01:50]} Qa7 {[%emt 0:00:39]} 31. Qxe5+ {[%emt 0:00:35]} Kh6 {[%emt 0:00:18]} 32. Qd4 {[%emt 0:02:11]} Qe7 {[%emt 0:05:02]} 33. Rd3 {[%emt 0:02:54]} Rc5 {[%emt 0:01:57]} 34. Rh3+ {[%emt 0:02:43]} Rh5 {[%emt 0:01:17]} 35. Rxh5+ {[%emt 0:01:28]} gxh5 {[%emt 0:00:07]} 36. e5 {[%emt 0:00:17]} Rg7 {[%emt 0:00:33]} 37. Qd6+ {[%emt 0:00:13]} Qxd6 {[%emt 0:00:15]} 38. exd6 {[%emt 0:00:03]} h4 {[%emt 0:00:45]} 39. h3 {[%emt 0:00:15]} Kh5 {[%emt 0:00:10]} 40. Rd1 {[%emt 0:00:22]} Rd7 {[%emt 0:01:24]} 41. b6 {[%emt 0:00:08]} h6 {[%emt 0:00:15]} 42. b7 {[%emt 0:00:21]} Rxb7 {[%emt 0:00:05]} 43. d7 {[%emt 0:00:03]} Ra7 {[%emt 0:00:35]} 44. d8=Q {[%emt 0:00:11]} Ra5 {[%emt 0:00:48]} 45. Qxa5+ {[%emt 0:00:11]} Kg6 {[%emt 0:00:13]} 46. Qb6+ {[%emt 0:00:03]} Kf5 {[%emt 0:00:27]} 47. Qxh6 {[%emt 0:00:04]} Ke4 {[%emt 0:00:22]} 48. Qxh4+ {[%emt 0:00:08]} Ke5 {[%emt 0:00:33]} 49. a5 {[%emt 0:00:15]} Kf5 {[%emt 0:00:53]} 50. a6 {[%emt 0:00:07]} Kg6 {[%emt 0:00:07]} 51. a7 {[%emt 0:00:07]} Kf5 {[%emt 0:00:03]} 52. a8=B {[%emt 0:00:05]} Ke6 {[%emt 0:00:14]} 53. Rd6+ {[%emt 0:00:09]} Kf5 {[%emt 0:00:38]} 54. Qe4+ {[%emt 0:00:10]} Kg5 {[%emt 0:00:04]} 55. Rg6+ {[%emt 0:00:06]} Kh5 {[%emt 0:00:38]} 56. Qg4# {[%emt 0:00:05]} 1-0

[Event "NOR-ch Youth 2019"]
[Site "Skien"]
[Date "2019.11.10"]
[Round "7.7"]
[White "Vitenberg, Noam Aviv"]
[Black "Nilsen, Tobias Lang"]
[Result "1-0"]
[ECO "D38"]
[WhiteElo "2246"]
[BlackElo "2016"]
[Annotator "NA"]
[PlyCount "103"]
[EventDate "2019.11.08"]
[EventType "swiss"]
[EventCountry "NOR"]
[SourceTitle "playchess.com"]
[Source "ChessBase"]
[SourceQuality "1"]
[TimeControl "5400+30"]

1. Nf3 {[%emt 0:08:36]} Nf6 {[%emt 0:00:07]} 2. c4 {[%emt 0:00:10]} e6 {[%emt 0:01:42]} 3. Nc3 {[%emt 0:00:08]} d5 {[%emt 0:01:05]} 4. d4 {[%emt 0:00:12]} Bb4 {[%emt 0:01:23]} 5. cxd5 {[%emt 0:00:21]} exd5 {[%emt 0:00:33]} 6. Bg5 {[%emt 0:00:13]} O-O {[%emt 0:03:50]} 7. e3 {[%emt 0:01:17]} h6 {[%emt 0:00:34]} 8. Bh4 {[%emt 0:01:00]} Bf5 {[%emt 0:05:57]} 9. Qb3 {[%emt 0:04:20]} Nc6 {[%emt 0:08:42]} 10. Be2 {[%emt 0:02:41]} g5 {[%emt 0:03:42]} 11. Bg3 {[%emt 0:02:58]} Ne4 $11 {[%emt 0:01:18]} 12. O-O {[%emt 0:15:17]} Bxc3 {[%emt 0:14:37]} 13. bxc3 {[%emt 0:00:34]} Na5 {[%emt 0:00:21]} 14. Qb4 {[%emt 0:07:33]} b6 {[%emt 0:01:08]} 15. Ne5 {[%emt 0:04:43]} Re8 {[%emt 0:07:02]} 16. Rfd1 {[%emt 0:06:50]} Qe7 {[%emt 0:06:20]} 17. Rac1 {[%emt 0:02:15]} Rac8 {[%emt 0:02:11]} 18. Ba6 {[%emt 0:08:40]} c5 {[%emt 0:01:30]} 19. Qa3 {[%emt 0:00:46]} Rcd8 {[%emt 0:00:50]} 20. Bb5 {[%emt 0:01:38]} Rf8 {[%emt 0:00:13]} 21. Be2 {[%emt 0:06:54]} Qf6 {[%emt 0:07:02]} 22. Nd3 {[%emt 0:07:52]} Nxg3 {[%emt 0:05:04]} 23. hxg3 {[%emt 0:00:23]} Nc4 {[%emt 0:00:17]} 24. Qa6 {[%emt 0:01:55]} cxd4 {[%emt 0:05:04]} 25. cxd4 {[%emt 0:01:20]} Qe7 {[%emt 0:00:35]} 26. Qb5 {[%emt 0:04:13]} Rfe8 {[%emt 0:01:20]} 27. Bf1 {[%emt 0:02:42]} a5 {[%emt 0:13:33]} 28. Qb3 {[%emt 0:01:10]} Rc8 {[%emt 0:00:50]} 29. Nb2 {[%emt 0:02:31]} Nxb2 {[%emt 0:00:18]} 30. Qxb2 {[%emt 0:00:06]} Qd6 {[%emt 0:00:14]} 31. Qb5 {[%emt 0:01:14]} Bd7 {[%emt 0:00:39]} 32. Qb3 {[%emt 0:01:01]} Rxc1 {[%emt 0:01:51]} 33. Rxc1 {[%emt 0:00:34]} Rc8 {[%emt 0:00:11]} 34. Rb1 {[%emt 0:00:25]} Rb8 {[%emt 0:00:07]} 35. Bb5 {[%emt 0:00:24]} Bf5 {[%emt 0:00:47]} 36. Bd3 {[%emt 0:00:39]} Bd7 {[%emt 0:00:44]} 37. Be2 {[%emt 0:00:37]} Bf5 {[%emt 0:02:14]} 38. Rb2 {[%emt 0:00:40]} Be6 {[%emt 0:00:41]} 39. Bf3 {[%emt 0:00:39]} g4 {[%emt 0:00:14]} 40. Bd1 {[%emt 0:00:29]} h5 {[%emt 0:00:50]} 41. Qd3 {[%emt 0:00:31]} f5 {[%emt 0:00:42]} 42. Rc2 {[%emt 0:01:09]} Rc8 {[%emt 0:01:12]} 43. Rxc8+ {[%emt 0:00:13]} Bxc8 {[%emt 0:00:05]} 44. Bb3 {[%emt 0:00:09]} Be6 {[%emt 0:00:44]} 45. Qb5 {[%emt 0:00:48]} Kf7 {[%emt 0:00:32]} 46. Ba4 {[%emt 0:00:24]} Qd8 {[%emt 0:01:26]} 47. Qc6 {[%emt 0:00:24]} h4 {[%emt 0:01:26]} 48. gxh4 Qxh4 {[%emt 0:00:28]} 49. Qe8+ {[%emt 0:01:16]} Kg7 {[%emt 0:00:24]} 50. Qxe6 {[%emt 0:00:10]} g3 {[%emt 0:00:07]} 51. fxg3 {[%emt 0:00:12]} Qxg3 {[%emt 0:00:12]} 52. Qe5+ {[%emt 0:00:11]} 1-0

[Event "NOR-ch Youth 2019"]
[Site "Skien"]
[Date "2019.11.10"]
[Round "7.8"]
[White "Gjestemoen-VonHirsch, Andre"]
[Black "Melaa, Sondre"]
[Result "0-1"]
[ECO "C45"]
[WhiteElo "1967"]
[BlackElo "2234"]
[Annotator "NA"]
[PlyCount "114"]
[EventDate "2019.11.08"]
[EventType "swiss"]
[EventCountry "NOR"]
[SourceTitle "playchess.com"]
[Source "ChessBase"]
[SourceQuality "1"]
[TimeControl "5400+30"]

1. e4 {[%emt 0:00:28]} e5 {[%emt 0:00:00]} 2. Nf3 {[%emt 0:00:04]} Nc6 {[%emt 0:00:00]} 3. d4 {[%emt 0:00:03]} exd4 {[%emt 0:00:00]} 4. Nxd4 {[%emt 0:00:03]} Nf6 {[%emt 0:00:05]} 5. Nxc6 {[%emt 0:00:04]} bxc6 {[%emt 0:00:05]} 6. e5 {[%emt 0:00:03]} Qe7 {[%emt 0:00:10]} 7. Qe2 {[%emt 0:00:04]} Nd5 {[%emt 0:00:11]} 8. h4 {[%emt 0:00:04]} f6 {[%emt 0:14:54]} 9. c4 {[%emt 0:00:16]} Ba6 {[%emt 0:02:51]} 10. Rh3 {[%emt 0:00:27]} Nb6 {[%emt 0:05:16]} 11. exf6 {[%emt 0:17:12]} Qxe2+ {[%emt 0:00:24]} 12. Bxe2 {[%emt 0:00:07]} gxf6 {[%emt 0:12:19]} (12... Bxc4 $11 {remains equal.} 13. fxg7 Bxg7) 13. Bh5+ {[%emt 0:01:32]} Kd8 {[%emt 0:00:13]} 14. b3 $11 {[%emt 0:00:31]} Bd6 {[%emt 0:07:58]} 15. Bb2 {[%emt 0:01:14]} Be5 {[%emt 0:01:11]} 16. Bxe5 {[%emt 0:02:03]} fxe5 {[%emt 0:00:06]} 17. Re3 {[%emt 0:00:07]} d6 {[%emt 0:01:47]} 18. Nc3 {[%emt 0:00:17]} Kc8 {[%emt 0:14:22]} 19. O-O-O {[%emt 0:04:45]} c5 {[%emt 0:02:46]} 20. Rg3 {[%emt 0:03:41]} Bb7 {[%emt 0:00:50]} 21. Rg7 {[%emt 0:06:07]} Bc6 {[%emt 0:00:42]} 22. Bg4+ {[%emt 0:01:32]} Kb7 {[%emt 0:03:16]} 23. Rxd6 {[%emt 0:18:01]} Rag8 {[%emt 0:06:02]} 24. Rxc6 {[%emt 0:00:25]} Rxg7 {[%emt 0:02:03]} 25. Bf3 {[%emt 0:00:13]} Kb8 {[%emt 0:00:49]} 26. Ne4 {[%emt 0:00:36]} Nd7 {[%emt 0:02:47]} 27. Nxc5 {[%emt 0:00:38]} Nxc5 {[%emt 0:00:14]} 28. Rxc5 {[%emt 0:00:08]} Re8 {[%emt 0:02:15]} 29. Be4 {[%emt 0:02:07]} a6 {[%emt 0:07:28]} 30. Rc6 {[%emt 0:02:16]} Ka7 {[%emt 0:00:24]} 31. Kd2 {[%emt 0:03:07]} Rd8+ {[%emt 0:01:32]} 32. Ke3 {[%emt 0:01:57]} Rd1 {[%emt 0:00:34]} 33. b4 {[%emt 0:00:32]} Re1+ {[%emt 0:01:29]} 34. Kd3 {[%emt 0:00:16]} Rd7+ {[%emt 0:01:42]} 35. Bd5 {[%emt 0:00:02]} Ra1 {[%emt 0:00:19]} 36. Ke4 {[%emt 0:01:09]} Rxa2 {[%emt 0:02:19]} 37. Kxe5 {[%emt 0:00:18]} Rxf2 {[%emt 0:00:30]} 38. Rf6 {[%emt 0:03:42]} Re7+ {[%emt 0:01:50]} 39. Re6 {[%emt 0:00:37]} Re2+ {[%emt 0:00:15]} 40. Kf6 {[%emt 0:00:04]} R7xe6+ {[%emt 0:00:09]} 41. Bxe6 {[%emt 0:00:06]} Rxg2 {[%emt 0:00:08]} 42. Bf5 {[%emt 0:00:16]} h6 {[%emt 0:01:45]} 43. Bg6 {[%emt 0:00:18]} Rg4 {[%emt 0:04:46]} 44. h5 {[%emt 0:00:06]} Rxc4 {[%emt 0:01:43]} 45. Kg7 {[%emt 0:00:05]} Rxb4 {[%emt 0:00:04]} 46. Kxh6 {[%emt 0:00:04]} a5 {[%emt 0:00:09]} 47. Kg5 {[%emt 0:00:43]} a4 {[%emt 0:01:21]} 48. h6 {[%emt 0:00:06]} a3 {[%emt 0:01:11]} 49. h7 {[%emt 0:00:03]} Rb8 {[%emt 0:00:17]} 50. Bf7 {[%emt 0:00:04]} Rh8 {[%emt 0:00:22]} 51. Kg6 {[%emt 0:00:24]} Kb6 {[%emt 0:00:47]} 52. Kg7 {[%emt 0:00:03]} Rxh7+ {[%emt 0:00:07]} 53. Kxh7 {[%emt 0:00:01]} Kb5 {[%emt 0:00:27]} 54. Kg6 {[%emt 0:00:05]} c5 {[%emt 0:00:06]} 55. Ba2 {[%emt 0:00:04]} c4 {[%emt 0:00:21]} 56. Kf5 {[%emt 0:00:04]} c3 {[%emt 0:00:05]} 57. Bb1 {[%emt 0:00:09]} c2 {[%emt 0:00:11]} 0-1

[Event "NOR-ch Youth 2019"]
[Site "Skien"]
[Date "2019.11.10"]
[Round "7.9"]
[White "Kvendseth, Thyra"]
[Black "Sjoberg, Isak"]
[Result "1/2-1/2"]
[ECO "A62"]
[WhiteElo "1868"]
[BlackElo "2247"]
[Annotator "NA"]
[PlyCount "117"]
[EventDate "2019.11.08"]
[EventType "swiss"]
[EventCountry "NOR"]
[SourceTitle "playchess.com"]
[Source "ChessBase"]
[SourceQuality "1"]
[TimeControl "5400+30"]

1. d4 {[%emt 0:00:00]} Nf6 {[%emt 0:03:26]} 2. Nf3 {[%emt 0:00:00]} c5 {[%emt 0:00:13]} 3. d5 {[%emt 0:00:16]} e6 {[%emt 0:00:48]} 4. c4 {[%emt 0:00:08]} exd5 {[%emt 0:00:09]} 5. cxd5 {[%emt 0:00:05]} d6 {[%emt 0:00:11]} 6. Nc3 {[%emt 0:02:22]} g6 {[%emt 0:00:13]} 7. g3 {[%emt 0:01:10]} Bg7 {[%emt 0:00:28]} 8. Bg2 {[%emt 0:00:43]} O-O {[%emt 0:00:11]} 9. O-O {[%emt 0:01:03]} Re8 {[%emt 0:01:38]} 10. Bf4 {[%emt 0:02:31]} Ne4 {[%emt 0:00:44]} 11. Nxe4 {[%emt 0:00:24]} Rxe4 {[%emt 0:00:05]} 12. Nd2 {[%emt 0:01:54]} Rxf4 {[%emt 0:00:14]} 13. gxf4 {[%emt 0:00:05]} Bxb2 {[%emt 0:00:21]} 14. Rb1 {[%emt 0:00:05]} Bg7 {[%emt 0:00:07]} 15. Qb3 {[%emt 0:06:10]} Na6 {[%emt 0:14:51]} 16. Nc4 {[%emt 0:06:10]} Rb8 {[%emt 0:06:44]} 17. a4 {[%emt 0:03:08]} Nb4 $11 {[%emt 0:01:43]} 18. e4 {[%emt 0:03:42]} b6 {[%emt 0:25:55]} 19. Rfe1 {[%emt 0:12:08]} Bh6 {[%emt 0:05:51]} 20. Qg3 {[%emt 0:12:38]} Ba6 {[%emt 0:03:41]} 21. Nxd6 {[%emt 0:17:31]} Qxd6 {[%emt 0:01:15]} 22. e5 {[%emt 0:00:38]} Qf8 {[%emt 0:03:46]} 23. Be4 {[%emt 0:05:11]} f5 {[%emt 0:08:49]} 24. exf6 {[%emt 0:00:50]} Qxf6 {[%emt 0:03:42]} 25. f5 {[%emt 0:00:43]} Qg5 {[%emt 0:01:59]} 26. fxg6 {[%emt 0:00:53]} Qxg3+ {[%emt 0:00:19]} 27. hxg3 {[%emt 0:00:29]} hxg6 {[%emt 0:00:08]} 28. Bxg6 {[%emt 0:00:29]} Rd8 {[%emt 0:03:32]} 29. Re7 {[%emt 0:02:04]} Rd6 {[%emt 0:05:47]} 30. Bh7+ {[%emt 0:04:08]} Kh8 {[%emt 0:00:53]} 31. Rbe1 {[%emt 0:02:38]} Bd2 {[%emt 0:01:48]} 32. R1e5 {[%emt 0:02:09]} Rxd5 {[%emt 0:00:36]} 33. R5e6 {[%emt 0:00:43]} Bc8 {[%emt 0:02:31]} 34. Rf6 {[%emt 0:01:15]} Rd8 {[%emt 0:00:30]} 35. Be4 {[%emt 0:05:53]} Bc3 {[%emt 0:01:33]} 36. Rg6 {[%emt 0:02:59]} Nd5 {[%emt 0:01:09]} 37. Rxa7 {[%emt 0:03:10]} Nf6 {[%emt 0:00:40]} 38. Bc2 {[%emt 0:00:33]} Be6 {[%emt 0:00:38]} 39. Rh6+ {[%emt 0:01:07]} Kg8 {[%emt 0:00:02]} 40. Bh7+ {[%emt 0:00:50]} Nxh7 {[%emt 0:01:17]} 41. Rxe6 {[%emt 0:00:02]} Nf8 {[%emt 0:01:03]} 42. Rxb6 {[%emt 0:00:11]} Bd4 {[%emt 0:00:14]} 43. Rc7 {[%emt 0:00:56]} Ra8 {[%emt 0:00:20]} 44. Rb3 {[%emt 0:00:52]} Rxa4 {[%emt 0:00:21]} 45. Rc8 {[%emt 0:00:33]} c4 {[%emt 0:00:35]} 46. Rf3 {[%emt 0:00:12]} Bg7 {[%emt 0:00:02]} 47. Rf4 {[%emt 0:00:52]} Ra1+ {[%emt 0:00:47]} 48. Kg2 {[%emt 0:00:01]} c3 {[%emt 0:00:08]} 49. Rg4 {[%emt 0:00:19]} Rc1 {[%emt 0:00:26]} 50. Rc7 {[%emt 0:00:19]} Ne6 {[%emt 0:00:07]} 51. Re7 {[%emt 0:00:07]} c2 {[%emt 0:00:36]} 52. Rc4 {[%emt 0:01:21]} Re1 {[%emt 0:00:23]} 53. Re8+ {[%emt 0:00:57]} Kf7 {[%emt 0:00:31]} 54. Rec8 {[%emt 0:00:06]} Nd4 {[%emt 0:00:21]} 55. R8c7+ {[%emt 0:00:59]} Re7 {[%emt 0:00:35]} 56. Rxc2 {[%emt 0:00:28]} Nxc2 {[%emt 0:00:01]} 57. Rxc2 {[%emt 0:00:02]} Ra7 {[%emt 0:00:23]} 58. Kh3 {[%emt 0:00:32]} Kg6 {[%emt 0:01:02]} 59. Kg2 {[%emt 0:00:23]} 1/2-1/2